Workbook

Sheet Cover
A10: ESKOM GENERATION
A12: 2026
B13: THE PROVISION OF 24-HOUR EMERGENCY SPILLAGE RESPONSE AT CAMDEN POWER STATION FOR A PERIOD OF 48 MONTHS. - BILLS OF QUANTITIES
A29: CONTRACT NUMBER | F29: :
A32: CONTRACTOR | F32: :
A35: CONTRACT AMOUNT (EXCL. VAT) | F35: :
A38: CONTRACT AMOUNT (INCL. VAT) | F38: :

Sheet Flyer 1
A13: TABLE OF CONTENTS

Sheet Contents
A1: THE PROVISION OF 24-HOUR EMERGENCY SPILLAGE RESPONSE AT CAMDEN POWER STATION FOR A PERIOD OF 48 MONTHS. - BILLS OF QUANTITIES
A3: TABLE OF CONTENTS
B5: Contract Data
B7: Notes to Tenderers
B9: Bill of Quantities
B11: Section 1 | D11: : Outage Bills of Quantities
B13: Section 2 | D13: : Maintenance Bills of Quantities
B16: Final Summary

Sheet Flyer 2
A12: NOTES TO TENDERERS

Sheet Notes to Tenderers
B2: NOTES TO TENDERERS
B4: 1. BILLS OF QUANTITIES
B6: This document comprises Notes to Tenderers and Bills of Quantities and is hereafter referred to as "the Bills of Quantities".
B8: The Tenderers are to note that this is a Contract with a Bills of Quantities.
B10: 2.1 CONTRACT DOCUMENTS
B12: The contract documents will consist of:
B14: 2.1.1 The NEC3 Term Services Contract 2013 together with all amendments.
B16: 2.1.2 These Bills of Quantities, including all annexures and supplementary documentation referred to therein.
B18: 2.1.3 Documents to be provided by the Contractor in terms of the requirements of these Bills of Quantities.
B20: 2.1.4 Construction Regulations 2014
B22: 2.1.5 Occupational Health and Safety Act of 1993
B24: 3 DRAWINGS
B26: There are no drawings for this contract.
B28: 4 VALUE ADDED TAX
B30: Tenderers should compute their rates from the net costs (excluding Value Added Tax). Value Added Tax at the current rate of 15% is to be added to the net sub-total on the final summary page by means of a single sum calculation to establish the tender price.
B32: 5 SCOPE OF WORK
B34: As a guide only, the work comprises as follows:-
B36: THE PROVISION OF 24-HOUR EMERGENCY SPILLAGE RESPONSE AT CAMDEN POWER STATION FOR A PERIOD OF 48 MONTHS
B38: 6 ADDRESS WHERE DOCUMENTS CAN BE OBTAINED
B40: Tender documents will be made available Electronically on an online portal to be provided by Eskom
B42: 7 POSSESSION OF SITE
B44: The date of which possession of the Site shall be given to the Contractor shall be within 7 working days of the acceptance of this tender.
B46: 8 CONSTRUCTION PERIOD - DATES FOR PRACTICAL COMPLETION
B48: The intended date for practical completion and penalty for each calendar day for non-completion shall be:
B50: Practical Completion: 48 Months from the date of Site Handover
B52: Tenderers are to note that the Contract will be delivered as a whole and NOT to be phased.
B54: 9 COMMON LAW OR BY-LAW REQUIREMENTS
B56: No liability for not specifically mentioning any normal contractual, Common Law or By-Law requirements will be accepted by the Employer, or Contracts Manager.
B58: 10 ORDERING OF MATERIALS
B60: No claims will be entertained due to non-availability of materials or labour. The Tenderer is therefore required to investigate and ensure that the specific materials and components required for the works will be available at the relevant estimated construction times, at the time of tendering.
B62: 11 CONTRACT PRICE ADJUSTMENT
B63: The Contract Sum shall be subject to CPAP.
B65: 12. PRICED BILLS OF QUANTITIES:
B67: Tenderers must submit to the Contracts Manager a copy of the Bills of Quantities fully priced and extended, with his tender. After the Bills have been checked, and when called upon, each page of the Bills of Quantities shall be initialed and the Index page and the Final Summary page signed in full.
B69: 13 DIFFERENCE AND DISCREPANCIES:
B71: Should there be any difference or discrepancy between the prices or particulars contained in the official Tender Form and those contained in any covering letter from the Tenderer, the prices contained in the official Tender Form shall prevail.
B73: Every Tenderer shall be deemed to have waived, renounced and abandoned any conditions printed or written upon any stationery used by him for the purpose of or in connection with the submission of his Tender, which are in conflict with the Conditions of Tender.
B75: Tenderers are warned that any material divergence from the official conditions or specifications may render their Tenders liable to disqualification.
B77: The Tenderers are to note that if there are any arithmetical errors in the Tenderers' form of tender in calculation of the Tender Sum, the Contracts Manager will correct the calculation accordingly.
B79: 14 COMMUNICATION WITH MEMBERS OF THE CLIENT COMPANY OR PROFESSIONAL TEAM
B81: A Tenderer shall not in any way communicate with a member of the Client Company or Professional Team or with any officer on a question affecting any contract or the supply of goods or for any work, undertaking or service which is the subject of a Tender during the period between the closing date for receipt of Tenders and the dispatch of the written notification of the Employer's decision on the award of the contract; provided that a Tenderer shall not hereby be precluded from obtaining from the Employer or his authorised representative information as to the date upon which the award of the contract is likely to be made or, after the decision upon the award has been made by the Contracts Manager to which the Employer had delegated its powers, information as to the nature of the decision or such information as was publicly disclosed at the opening of Tenders.
B83: 15 IMPORT PERMITS:
B85: Tenderers must apply direct for any import permit and/or currency required, however the Contracts Manager will furnish successful Tenderers with a supporting statement if required.
B87: 16 BILLS OF QUANTITIES:
B89: No alteration, erasure, omission or addition is to be made to the text and conditions of these Bills of Quantities and should any such alteration, amendment, note or addition be made, the same will not be recognised, but the reading of the Bills of Quantities as prepared by the Contracts Manager will be adhered to.
B91: It should be understood that the system of measurement herein adopted is the only system of measurement which will be recognised in connection with this contract. Before the signing of the contract, the Contracts Manager will be entitled to call for adjustments of individual rates and rectify discrepancies, as he considers necessary without alterations to the Tender amount.
B93: 6 Ensure that every employee or person (including visitors) who enters the site of the Works undergoes health and safety induction training pertaining to hazards identified on the site of the Works and upon such training having been successfully completed, the Contractor must issue written confirmation by a competent person to the trained employees or persons who shall be further instructed to carry such confirmation with them at all times whilst on the site of the Works;
B95: 7 Issue, on loan, the necessary personal protective equipment to visitors to the site of the Works; and
B97: 8 Be in good standing with the Compensation Commissioner at all times during the duration of the Contract.
B99: 9 The Contractor is to sign a Non-Disclosure Agreement prior to collecting or receiving any proprietary information from Eskom, drawings, documentation, reports and photographs
B101: The Contractor will be deemed to have satisfied himself with his obligations in terms of the Act and to have allowed for all costs arising from compliance with the Act as no claim for extra costs arising from compliance with, and obligations in terms of the Act will be entertained.
B103: 17 PRICING OF THESE GENERAL NOTES
B105: The Contractor must allow in his pricing for any additional costs arising from these "General Notes" as no later claims for additional costs will be considered.
B107: 18 TAX COMPLIANCE
B109: Failure to provide mandatory information required in this Bid will result in the submissions being deemed null and void and shall be considered non-responsive. An Electronic Tax Compliance Status (TCS) System will be used to verify the bidder’s tax compliance status so bidders must request a unique security personal identification number (PIN) from SARS which must be submitted with the bid
B111: No alternative tender offers will be considered.
B112: These Bills are not to be used for the purpose of ordering materials.
B114: All Bill rates are to include for material, labour, plant, wastage, transport and profit.

Sheet Flyer 3
A13: BILLS OF QUANTITIES

Sheet Section 1 - Summary (hidden)
A2: Provision of Mechanical Maintenance of the Boiler Auxiliary Plant, Soot Blowers and Valves for the Period of 36 Months (Outage BOQ)
A5: SECTION SUMMARY
A7: SECTION 01 - OUTAGES BILL OF QUANTITIES
A10: No | B10: Description | D10: Amount
B12: SECTION 1: OUTAGE BOQ
A14: 1 | B14: Outage BOQ | D14: R
B17: Sub-Total | D17: R
A20: 2 | B20: Value Added Tax @ 15% | D20: R
A23: 3 | B23: Grand Total - (Incl. VAT) | D23: R

Sheet Section 2 - Summary (hidden)
A2: Provision of Mechanical Maintenance of the Boiler Auxiliary Plant, Soot Blowers and Valves for the Period of 60 Months (Maintenance)
A5: SECTION SUMMARY
A7: SECTION 02 - MAINTENANCE BILL OF QUANTITIES
A10: No | B10: Description | D10: Amount
B12: SECTION 1: OUTAGE BOQ
A14: 1 | B14: Maintenance BOQ | D14: R
B17: Sub-Total | D17: R
A20: 2 | B20: Value Added Tax @ 15% | D20: R
A23: 3 | B23: Grand Total - (Incl. VAT) | D23: R

Sheet BOQ
A1: The provision of 24 hour emergency spill response (Hazmat )for period of 48 months at Camden Power Station
A3: Item | B3: Description | C3: Unit | D3: Qty | E3: Rate | F3: Amount
A5: 1 | B5: PRELIMINARIES AND GENERAL
A7: 1.1 | B7: Site Establishment | C7: SUM | D7: 1
A8: 1.2 | B8: Site-De-establishment | C8: SUM | D8: 1
A9: 1.3 | B9: Tools,Equipment | C9: Yearly | D9: 4
A10: 1.4 | B10: Workforce Medical | C10: No | D10: =14*4 -> 56
A11: 1.5 | B11: Workforce Medical Exit | C11: NO | D11: 14
A12: 1.6 | B12: PPE ( Quarterly) | C12: Quartely | D12: =14*4*4 -> 224
A13: 1.7 | B13: Specialized acid PPE-First Issue (as when required) | C13: Quartely | D13: =14*4*4 -> 224
A14: 1.8 | B14: Acid Proof Boots | C14: Yearly | D14: =14*1*4 -> 56
A15: 1.9 | B15: SAPS/ Fingerprint Vetting | C15: ANNUALLY | D15: =14*4 -> 56
A16: 1.10 | B16: Full SHEQ Complinace ISO45001/ISO9001/14001 | C16: Sum | D16: 1
A17: 1.11 | B17: HAZMAT TECHNICIAN COMPENTANCE CERTIFICATE ie SAESI Registered FireFighting 1 and 2 (Membership Fees) | C17: ANNUALLY | D17: =2*4 -> 8
A18: 1.12 | B18: Life Jackets | C18: EA | D18: =3*4 -> 12
A19: 1.13 | B19: Half Mask Respirator Cartridge | C19: EA | D19: =14*4 -> 56
A20: 1.14 | B20: Wader suit | C20: EA | D20: =14*4 -> 56
B22: Preliminaries and Genaral Items
A24: 2 | B24: Human Resource
B25: Normal Hours
A26: 2.1 | B26: Site Manager x 1 No | C26: Hourly | D26: =173*48*1 -> 8304
A27: 2.2 | B27: Safety Officer 1 No | C27: Hourly | D27: =173*48*1 -> 8304
A28: 2.1 | B28: Hazmat Supervisor x 1No | C28: Hourly | D28: 8304
A29: 2.2 | B29: Hazmat Technician x 2No | C29: Hourly | D29: =173*48*2 -> 16608
A30: 2.3 | B30: Hazmat Skip Operator (as and when required) 1 No | C30: Hourly | D30: 8304
A31: 2.4 | B31: Hazmat Assistant x 8 No | C31: Hourly | D31: =173*48*8 -> 66432
B33: Standby Allowance (Mon-Sat) (1.5 x Normal Rate)
A34: 2.5 | B34: Safety Officer | C34: Hourly | D34: =12*48 -> 576
A35: 2.6 | B35: Hazmat Supervisor x 1 | C35: Hourly | D35: =16*48 -> 768
A36: 2.7 | B36: Hazmat Technician x 2 | C36: Hourly | D36: =16*2*48 -> 1536
A37: 2.8 | B37: Hazmat Skip Operator (as and when required) | C37: Hourly | D37: =12*48 -> 576
A38: 2.9 | B38: Hazmat Assistant x 8 | C38: Hourly | D38: =12*48*8 -> 4608
B40: Standby Allowance (Sundays and Public Holidays)(2x Normal Rate)
A41: 2.10 | B41: Safety Officer | C41: Hourly | D41: =4*48 -> 192
A42: 2.11 | B42: Hazmat Supervisor x 1 | C42: Hourly | D42: =4*48 -> 192
A43: 2.12 | B43: Hazmat Technician x 2 | C43: Hourly | D43: =4*2*48 -> 384
A44: 2.13 | B44: Hazmat Skip Operator (as and when required) | C44: Hourly | D44: =4*48 -> 192
A45: 2.14 | B45: Hazmat Assistant x 8 | C45: Hourly | D45: =4*48*8 -> 1536
B47: Weekdays & Saturdays Call outs (As and when required) (1.5x)
A48: 2.15 | B48: Safety Officer | C48: Hourly | D48: =1*8*12*48 -> 4608
A49: 2.16 | B49: Hazmat Supervisor x 1 | C49: Hourly | D49: =1*8*12*48 -> 4608
A50: 2.17 | B50: Hazmat Technician x 2 | C50: Hourly | D50: =2*8*12*48 -> 9216
A51: 2.18 | B51: Hazmat Skip Operator (as and when required) | C51: Hourly | D51: =1*8*12*48 -> 4608
A52: 2.19 | B52: Hazmat Assistant x 8 | C52: Hourly | D52: =8*8*12*48 -> 36864
B54: Sundays & Public Holidays (2x Normal Rate)
A55: 2.20 | B55: Hazmat Supervisor x 1 | C55: Hourly | D55: =1*8*4*48 -> 1536
A56: 2.21 | B56: Hazmat Technician x 2 | C56: Hourly | D56: =2*8*4*48 -> 3072
A57: 2.22 | B57: Hazmat Skip Operator (as and when required) | C57: Hourly | D57: =2*8*4*48 -> 3072
A58: 2.23 | B58: Hazmat Assistant x 8 | C58: Hourly | D58: =2*8*4*48 -> 3072
B60: Human Resource
A62: 3.1 | B62: 2x bakkie | C62: Monthly | D62: =2*48 -> 96
A63: 3.2 | B63: 2 Ton Hazmat Trailer | C63: Monthly | D63: 48
A64: 3.3 | B64: 2 Ton Hazmat Trailer Towing - Km (Camden-Holfontein return trip) | C64: Km | D64: =284*2*12*48 -> 327168
A65: 3.4 | B65: 2 Super Sucker Trucks (as and when required) | C65: Hourly | D65: =2*11*12*48 -> 12672
A66: 3.5 | B66: Skip Truck (as and when required) | C66: Hourly | D66: =1*11*12*48 -> 6336
A67: 3.6 | B67: 7m3 Skip Bin | C67: Monthly | D67: 48
A68: 3.7 | B68: 7m3 Sludge Bin | C68: Monthly | D68: 48
B70: Emergency (Huge Spillages)
A72: 3.8 | B72: Super Sucker Truck (as and when required) | C72: Hourly | D72: =2*3*4*4 -> 96
A73: 3.9 | B73: 14 Ton Bulk Tanker | C73: Hourly | D73: =(6+8+1)*4*4 -> 240
A74: 3.10 | B74: 24 Ton Bulk Tanker | C74: Hourly | D74: =(6+8+1)*4*4 -> 240
A75: 3.11 | B75: 34 Ton Bulk Tanker | C75: Hourly | D75: =(6+8+1)*4*4 -> 240
B77: Cleaning Equipment
A79: 3.12 | B79: Compressor 190 cfm (as and when required) | C79: Hrly | D79: =6*8*48 -> 2304
A80: 3.13 | B80: Compressor Call Out | C80: Day | D80: =6*48 -> 288
A81: 3.14 | B81: 4" Diaphragm Pump and Hose | C81: Hour | D81: =6*8*48 -> 2304
A82: 3.15 | B82: Fastank 2000 including Liner and Cover | C82: Day | D82: =6*48 -> 288
A83: 3.16 | B83: 1m3 Liquid Container | C83: Day | D83: 288
A84: 3.17 | B84: 300w Emergency Light | C84: Hour | D84: =6*8*48 -> 2304
A85: 3.18 | B85: 750 Bar High-pressure Cleaner | C85: Hour | D85: 2304
B87: Equipment
B89: ADDITIONAL
A90: 4.1 | B90: Self-prime diesel pump | C90: Hour | D90: =6*8*48 -> 2304
A91: 4.2 | B91: TLB | C91: Day | D91: =(365/4)*4 -> 365
B93: ABSORBENTS
A94: 4.3 | B94: 240L Kits - In Wheeled Bins Maintenance | C94: Monthly | D94: =12*48 -> 576
A95: 4.4 | B95: 240L Kits - In Wheeled Bins Oil only | C95: Monthly | D95: =12*48 -> 576
A96: 4.5 | B96: 240L Kits - In Wheeled Bins Chemical | C96: Monthly | D96: 576
A97: 4.6 | B97: Large Oil Spill Kit - carry bag 95 x 44 x 36cm consists of 1 x 100L Biozorb peat fibre, 2 x 2m Oilsep socks, 2 x Oilsep cushions, 20 x 200g Oil absorbent pads, 1 x Pair anti-mist goggles, 1 x Sparkproof shovel and broom, 5 x Heavy duty disposal bags and ties and 1 x instruction sheet. | C97: Monthly | D97: 576
A98: 4.7 | B98: Pack of 16 Absorbent Pillow 38 x 23 cm Maintenance | C98: Monthly | D98: 576
A99: 4.8 | B99: Pack of 16 Absorbent Pillow 38 x 23 cm Oil only | C99: Monthly | D99: 576
A100: 4.9 | B100: Pack of 16 Absorbent Pillow 38 x 23 cm Chemical | C100: Monthly | D100: 576
A101: 4.10 | B101: Absorbent Booms 6m (2/bag) | C101: Monthly | D101: 576
A102: 4.11 | B102: Absorbent Booms 4m (2/bag) | C102: Monthly | D102: 576
A103: 4.12 | B103: Absorbent Booms 10m | C103: Monthly | D103: 576
A104: 4.13 | B104: Absorbent Booms 30m | C104: Monthly | D104: 576
A105: 4.14 | B105: Absorbent Booms 50m | C105: Monthly | D105: 576
A106: 4.15 | B106: Absorbent Pads 500 x 400mm Maintenance medium | C106: Monthly | D106: 576
A107: 4.16 | B107: Absorbent Pads 500 x 400mm Oil only medium | C107: Monthly | D107: 576
A108: 4.17 | B108: Absorbent Pads 500 x 400mm Chemical medium | C108: Monthly | D108: 576
A109: 4.18 | B109: Absorbent Drum Top Cover to fit top of a 205L drum Maintenance - pack of 5 covers | C109: Monthly | D109: 576
A110: 4.19 | B110: Absorbent Drum Top Cover to fit top of a 205L drum Oil only - pack of 5 covers | C110: Monthly | D110: 576
A111: 4.20 | B111: Absorbent Drum Top Cover to fit top of a 205L drum Chemical - pack of 5 covers | C111: Monthly | D111: 576
A112: 4.21 | B112: Absorbent Rolls 40 000 x 900mm Maintenance medium | C112: Monthly | D112: 576
A113: 4.22 | B113: Absorbent Rolls 40 000 x 900mm Oil only medium | C113: Monthly | D113: 576
A114: 4.23 | B114: Absorbent Rolls 40 000 x 900mm Chemical medium | C114: Monthly | D114: 576
A115: 4.24 | B115: Absorbent Rolls 40 000 x 500mm Maintenance medium | C115: Monthly | D115: 576
A116: 4.25 | B116: Absorbent Rolls 40 000 x 500mm Oil only medium | C116: Monthly | D116: 576
A117: 4.26 | B117: Absorbent Rolls 40 000 x 500mm Chemical medium | C117: Monthly | D117: 576
A118: 4.27 | B118: Oilsep Fibre 10kg | C118: Monthly | D118: 576
A119: 4.28 | B119: Biozorb 100L Bag | C119: Monthly | D119: 576
A120: 4.29 | B120: Biozorb 200L Bag | C120: Monthly | D120: 576
A121: 4.30 | B121: Oilsep 200L Bag | C121: Monthly | D121: 576
A122: 4.31 | B122: Sparkproof Shovel and Broom | C122: Monthly | D122: 576
A123: 4.32 | B123: Heavy Duty Bags and Ties | C123: Monthly | D123: 576
A124: 4.33 | B124: PVC Sheeting roll | C124: Monthly | D124: 576
A125: 4.34 | B125: Danger Tape roll | C125: Monthly | D125: 576
B126: Consumables
A127: 4.35 | B127: 20L Degreaser | C127: Monthly | D127: 48
A128: 4.36 | B128: 5L Thinners | C128: Quartery | D128: =4*4 -> 16
A129: 4.37 | B129: 2L Benzene | C129: Quartery | D129: =4*4 -> 16
A130: 4.38 | B130: 2x 5kg bags of Cleaning Rags | C130: Monthly | D130: =48*2 -> 96
B133: ABSORBENTS AND ABSORBENTS COST
A135: 5 | B135: DISPOSAL
A136: 5.1 | B136: Testing of Hazardous Material for Disposal (Sampling) | C136: Item | D136: =3*48 -> 144
A137: 5.2 | B137: Disposal of Hazardous Material (Sludge Material) | C137: Ton | D137: =22*2*12*24 -> 12672
A138: 5.3 | B138: Disposal of Hazardous Material (Liquids Material) | C138: Ton | D138: =14*2*4*48 -> 5376
A139: 6 | B139: REHABILITATION
A140: 6.1 | B140: Supply and laying of topsoil for rehabilitation | C140: m3 | D140: 180
A141: 6.2 | B141: Removal of contaminated soil | C141: m3 | D141: 250
B143: DISPOSAL AND DISPOSAL COST
B145: Grand-Total Cost

Sheet Flyer 5
A12: FINAL SUMMARY

Sheet Final Summary
A2: Provision of Mechanical Maintenance of the Boiler Auxiliary Plant, Soot Blowers and Valves for the Period of 48 Months (Outage and Maintenance)
A5: FINAL SUMMARY
A7: No | B7: Description | D7: Amount
A9: 1 | B9: Bills of Quantities
B13: Sub-Total
A15: 3 | B15: Value Added Tax @ 15%
A18: 4 | B18: Grand Total (Incl. VAT) - Carried to Form of Offer and Acceptance
